bitfinex-derivatives/quotes_SOLF0:USTF0_20250624
["timestamp","ask_amount","ask_price","bid_price","bid_amount"]
[1750756584948,5.39396124,144.3,144.17,12.84424884]
[1750756585145,5.58772342,144.32,144.17,12.84424884]
[1750756585344,5.41038153,144.31,144.17,12.84424884]
[1750756585646,5.41038153,144.3,144.17,12.84424884]
[1750756585950,8.25457513,144.32,144.17,12.84424884]
[1750756586146,18.89496001,144.31,144.16,15.20244884]
[1750756586447,11.01787597,144.3,144.16,15.20244884]
[1750756586748,5.40965217,144.29,144.16,15.20244884]
[1750756586944,5.40965217,144.28,144.16,2.3582]
[1750756587136,13.66954459,144.27,144.16,2.3582]
[1750756587339,5.40965217,144.26,144.16,2.3582]
[1750756587546,5.40965217,144.25,144.16,2.3582]
[1750756587745,13.49421582,144.3,144.16,2.3582]
[1750756587941,37.05386128,144.29,144.11,12.84424884]
[1750756588140,37.05386128,144.29,144.1,4.3745]
[1750756588141,27.5080522,144.28,144.1,4.3745]
[1750756588339,18.90561175,144.27,144.1,4.3745]
[1750756588548,18.90561175,144.26,144.1,17.21874884]
[1750756588747,18.90561175,144.25,144.1,4.3745]
[1750756588943,18.90561175,144.24,144.1,4.3745]
[1750756589248,18.90561175,144.23,144.1,4.3745]
[1750756589549,13.68208246,144.22,144.1,4.3745]
[1750756589743,5.41540134,144.21,144.1,4.3745]
[1750756589944,13.50534654,144.26,144.1,4.3745]
[1750756590247,18.92227454,144.25,144.1,17.21874884]
[1750756590452,18.92227454,144.24,144.11,12.84424884]
[1750756590750,5.41797233,144.23,144.11,12.84424884]
[1750756590946,5.41797233,144.22,144.11,12.84424884]
[1750756591146,13.49752859,144.26,144.11,12.84424884]
[1750756591348,18.91425155,144.25,144.11,12.84424884]
[1750756591546,13.67701118,144.24,144.11,12.84424884]
[1750756591748,5.41672296,144.23,144.12,12.84424884]
[1750756591951,8.06362498,144.26,144.14,12.84424884]
[1750756592254,5.41698441,144.25,144.15,2.4081]
[1750756592456,13.48521258,144.31,144.15,2.4081]
[1750756592752,18.87562058,144.3,144.15,15.25234884]
[1750756592945,18.87562058,144.29,144.15,15.25234884]
[1750756593140,13.65203289,144.28,144.15,15.25234884]
[1750756593350,5.390408,144.27,144.15,15.25234884]
[1750756593551,5.22463116,144.32,144.15,15.25234884]
[1750756593552,5.390408,144.26,144.15,15.25234884]
[1750756593751,13.48767787,144.3,144.15,15.25234884]
[1750756593952,18.87909157,144.29,144.15,15.25234884]
[1750756594245,13.65446041,144.28,144.15,15.25234884]
[1750756594445,5.3914137,144.27,144.15,15.25234884]
[1750756594647,7.88590303,144.31,144.15,15.25234884]
[1750756594853,18.86247838,144.3,144.16,12.84424884]
[1750756595048,16.21243751,144.29,144.16,12.84424884]
[1750756595255,13.63042801,144.28,144.16,12.84424884]
[1750756595445,5.39434075,144.27,144.16,15.11024884]
[1750756595642,5.39434075,144.26,144.16,15.11024884]
[1750756595847,13.47359878,144.3,144.16,15.11024884]
[1750756596154,18.86926211,144.29,144.16,15.11024884]
[1750756596353,13.63347314,144.28,144.16,15.11024884]
[1750756596557,5.39566333,144.27,144.16,15.11024884]
[1750756596754,13.47609862,144.3,144.16,15.11024884]
[1750756596955,18.87223249,144.29,144.17,2.2742]
[1750756597157,13.63572505,144.28,144.17,2.2742]
[1750756597344,5.39613387,144.27,144.17,2.2742]
[1750756597544,13.47659499,144.3,144.17,2.2742]
[1750756597855,13.47659499,144.29,144.17,2.2742]
[1750756598057,13.65099365,144.28,144.17,2.2742]
[1750756598258,5.4109061,144.27,144.17,2.2742]
[1750756598455,13.4732175,144.3,144.17,2.2742]
[1750756598655,18.88318584,144.29,144.17,2.2742]
[1750756598859,13.64795475,144.28,144.17,2.2742]
[1750756599058,5.40996834,144.27,144.17,2.2742]
[1750756599249,13.47142318,144.3,144.17,2.2742]
[1750756599448,18.87952805,144.29,144.17,2.2742]
[1750756599751,13.64429696,144.28,144.17,2.2742]
[1750756599956,5.40810487,144.31,144.2,12.84424884]
[1750756600261,13.47104009,144.36,144.21,15.08184884]
[1750756600558,18.8774783,144.35,144.21,15.08184884]
[1750756600766,18.8730667,144.34,144.21,2.2376]
[1750756601054,2.76956736,144.38,144.21,2.2376]
[1750756601055,13.64154117,144.33,144.21,2.2376]
[1750756601254,5.40643821,144.32,144.21,15.08184884]
[1750756601442,7.8830794,144.36,144.21,15.08184884]
[1750756601643,18.8827005,144.35,144.21,15.08184884]
[1750756601848,18.8827005,144.34,144.21,15.08184884]
[1750756602049,13.65079957,144.33,144.21,15.08184884]
[1750756602257,5.40634612,144.32,144.21,2.2376]
[1750756602452,7.88217332,144.35,144.21,2.2376]
[1750756602652,13.30169128,144.34,144.21,2.2376]
[1750756602953,8.06979035,144.33,144.21,2.2376]
[1750756603155,5.41951796,144.32,144.21,15.08184884]
[1750756603452,5.41871591,144.31,144.21,15.08184884]
[1750756603653,5.41859067,144.3,144.21,15.08184884]
[1750756603953,2.64996438,144.32,144.21,15.08184884]
[1750756604148,5.41813687,144.31,144.21,15.08184884]
[1750756604350,2.64961562,144.32,144.21,15.08184884]
[1750756604558,5.41771094,144.31,144.21,2.2376]
[1750756604747,7.88835846,144.34,144.21,2.2376]
[1750756604948,8.06241566,144.33,144.21,2.2376]
[1750756605244,8.0620705,144.32,144.21,2.2376]
[1750756605447,5.40595813,144.31,144.21,2.2376]
[1750756605648,2.65611237,144.33,144.21,2.2376]
[1750756605850,5.40532834,144.32,144.21,2.2376]
[1750756606046,5.40532834,144.31,144.21,2.2376]
[1750756606248,2.65578653,144.32,144.21,2.2376]
[1750756606463,5.40421504,144.31,144.21,2.2376]
[1750756606660,7.88755445,144.36,144.21,2.2376]
[1750756606956,13.2917381,144.35,144.21,2.2376]
[1750756607152,13.2917381,144.34,144.21,2.2376]
[1750756607354,13.2917381,144.33,144.21,2.2376]
[1750756607654,8.05983717,144.32,144.21,2.2376]
[1750756607845,5.40418365,144.31,144.21,2.2376]
[1750756608045,5.40012007,144.3,144.19,12.91580048]
[1750756608254,7.88728325,144.33,144.19,12.91580048]
[1750756608459,13.28836507,144.32,144.19,12.91580048]
[1750756608659,8.05646414,144.31,144.19,12.91580048]
[1750756608860,5.40095361,144.3,144.19,12.91580048]
[1750756609055,26.03190093,144.35,144.19,12.91580048]
[1750756609056,7.89052971,144.34,144.19,12.91580048]
[1750756609261,18.9107414,144.33,144.18,12.91580048]
[1750756609467,18.9107414,144.32,144.18,12.91580048]
[1750756609760,13.676047,144.31,144.18,12.91580048]
[1750756609960,5.40150116,144.3,144.18,12.91580048]
[1750756610161,13.50001893,144.32,144.18,12.91580048]
[1750756610357,13.66658619,144.31,144.18,12.91580048]
[1750756610559,13.66405361,144.3,144.17,4.6615]
[1750756610747,20.8,144.32,144.17,4.6615]
[1750756610748,13.66370927,144.29,144.17,4.6615]
[1750756610952,11.01075088,144.28,144.17,4.6615]
[1750756611163,2.653937,144.29,144.17,4.6615]
[1750756611360,11.0121546,144.28,144.17,4.6615]
[1750756611660,2.65369185,144.29,144.17,4.6615]
[1750756611861,11.01240674,144.28,144.17,4.6615]
[1750756612062,2.65362956,144.29,144.17,4.6615]
[1750756612258,11.01215928,144.28,144.17,4.6615]
[1750756612460,5.40171541,144.27,144.17,4.6615]
[1750756612655,5.61043961,144.28,144.17,4.6615]
[1750756612856,2.65402209,144.29,144.17,4.6615]
[1750756613061,142.55851741,144.32,144.17,4.6615]
[1750756613062,10.96938486,144.28,144.17,4.6615]
[1750756613258,2.65441559,144.29,144.17,4.6615]
[1750756613460,13.62376046,144.28,144.17,4.6615]
[1750756613661,5.35885758,144.27,144.17,4.6615]
[1750756613856,8.26490906,144.28,144.17,4.6615]
[1750756614055,5.35940259,144.27,144.17,4.6615]
[1750756614257,13.50053027,144.29,144.17,4.6615]
[1750756614455,13.62454556,144.28,144.17,4.6615]
[1750756614665,5.35898173,144.27,144.17,4.6615]
[1750756614866,13.49248409,144.29,144.17,4.6615]
[1750756615065,13.61947723,144.28,144.17,4.6615]
[1750756615364,5.35942295,144.27,144.17,4.6615]
[1750756615558,13.47099655,144.29,144.17,4.6615]
[1750756615765,13.59853944,144.28,144.17,4.6615]
[1750756615967,5.3599727,144.27,144.17,4.6615]
[1750756616161,13.47137833,144.29,144.17,4.6615]
[1750756616361,13.59909211,144.28,144.17,4.6615]
[1750756616568,5.36014359,144.27,144.17,4.6615]
[1750756616866,13.47259907,144.29,144.17,4.6615]
[1750756617070,13.60172768,144.28,144.17,4.6615]
[1750756617260,5.36155842,144.27,144.17,4.6615]
[1750756617561,13.47653559,144.29,144.17,4.6615]
[1750756617768,13.6060663,144.28,144.17,4.6615]
[1750756617964,5.36482704,144.27,144.17,4.6615]
[1750756618158,13.47675354,144.29,144.17,4.6615]
[1750756618361,13.60636018,144.28,144.17,4.6615]
[1750756618560,5.36490297,144.27,144.17,4.6615]
[1750756618758,7.88592541,144.29,144.17,4.6615]
[1750756618960,121.75851741,144.32,144.17,4.6615]
[1750756618961,5.36616119,144.28,144.17,4.6615]
[1750756619266,13.47897702,144.3,144.17,4.6615]
[1750756619465,121.75851741,144.32,144.17,4.6615]
[1750756619466,5.3669402,144.29,144.17,17.57730048]
[1750756619666,5.3669402,144.28,144.17,4.6615]
[1750756619866,5.23529633,144.31,144.17,17.57730048]
[1750756620164,13.62164901,144.3,144.17,17.57730048]
[1750756620357,5.23529633,144.31,144.17,17.57730048]
[1750756620358,5.37099317,144.29,144.17,17.57730048]
[1750756620557,2.65259745,144.3,144.17,17.57730048]
[1750756620766,5.3700036,144.29,144.17,17.57730048]
[1750756620958,2.65287572,144.3,144.17,17.57730048]
[1750756621160,13.61897554,144.29,144.17,4.6615]
[1750756621368,10.96643758,144.28,144.17,4.6615]
[1750756621564,5.37052003,144.27,144.17,4.6615]
[1750756621764,13.48251298,144.29,144.17,4.6615]
[1750756621965,13.61594725,144.28,144.17,4.6615]
[1750756622161,5.3687306,144.27,144.17,4.6615]
[1750756622365,7.88710933,144.29,144.17,4.6615]
[1750756622668,13.61456268,144.28,144.17,4.6615]
[1750756622870,13.61456268,144.27,144.17,4.6615]
[1750756623065,5.3677184,144.26,144.17,4.6615]
[1750756623270,13.4832318,144.28,144.17,4.6615]
[1750756623466,13.61292742,144.27,144.17,4.6615]
[1750756623763,5.36771523,144.26,144.17,4.6615]
[1750756624072,7.88982325,144.29,144.17,4.6615]
[1750756624373,18.85077807,144.28,144.17,4.6615]
[1750756624571,151.10786218,144.32,144.17,4.6615]
[1750756624572,13.61275846,144.27,144.17,2.2742]
[1750756624772,10.96095482,144.26,144.17,2.2742]
[1750756624973,10.96095482,144.25,144.16,2.266]
[1750756625165,5.36776101,144.24,144.16,2.266]
[1750756625368,5.59533255,144.27,144.13,12.91580048]
[1750756625574,18.85544375,144.26,144.12,4.6135]
[1750756625874,18.85544375,144.25,144.12,4.6135]
[1750756626071,13.61528037,144.24,144.12,4.6135]
[1750756626268,10.96343402,144.23,144.12,4.6135]
[1750756626467,7.89181761,144.26,144.12,17.52930048]
[1750756626677,13.62065586,144.25,144.12,17.52930048]
[1750756626970,5.37129958,144.24,144.12,17.52930048]
[1750756627170,7.89151501,144.26,144.12,17.52930048]
[1750756627363,13.62051462,144.25,144.12,17.52930048]
[1750756627563,5.37097198,144.24,144.12,17.52930048]
[1750756627770,7.89164251,144.27,144.12,17.52930048]
[1750756627968,18.84782857,144.26,144.12,17.52930048]
[1750756628174,5.60006398,144.25,144.12,17.52930048]
[1750756628378,5.35644192,144.24,144.12,17.52930048]
[1750756628572,7.89371738,144.28,144.12,17.52930048]
[1750756628774,18.8501993,144.27,144.12,15.14630048]
[1750756628977,18.8501993,144.26,144.13,2.2149]
[1750756629173,13.60968195,144.25,144.13,2.2149]
[1750756629476,13.60968195,144.24,144.13,2.2149]
[1750756629777,5.35618106,144.23,144.13,2.2149]
[1750756630078,7.89371738,144.25,144.13,2.2149]
[1750756630285,13.60544246,144.24,144.13,2.2149]
[1750756630479,5.35343682,144.23,144.13,2.2149]
[1750756630778,7.89371738,144.26,144.13,2.2149]
[1750756631077,18.82940259,144.25,144.13,2.2149]
[1750756631376,13.59941661,144.24,144.13,2.2149]
[1750756631579,10.95237575,144.23,144.13,2.2149]
[1750756631778,7.87702684,144.26,144.13,2.2149]
[1750756632087,13.5983492,144.25,144.13,2.2149]
[1750756632376,13.5983492,144.24,144.13,2.2149]
[1750756632680,2.64704086,144.26,144.13,2.2149]
[1750756632876,13.59323894,144.25,144.13,2.2149]
[1750756633074,5.34794469,144.24,144.13,2.2149]
[1750756633276,2.64704086,144.25,144.13,2.2149]
[1750756633478,2.64704086,144.26,144.13,15.13070048]
[1750756633775,10.94703799,144.25,144.13,15.13070048]
[1750756633975,2.64594169,144.26,144.13,15.13070048]
[1750756634176,10.94705134,144.25,144.13,15.13070048]
[1750756634378,7.87698011,144.27,144.13,15.13070048]
[1750756634578,13.59620035,144.26,144.13,15.13070048]
[1750756634779,10.94920622,144.25,144.13,15.13070048]
[1750756634978,5.34973635,144.24,144.13,15.13070048]
[1750756635184,7.87734782,144.26,144.13,2.2149]
[1750756635375,13.58255947,144.25,144.13,2.2149]
[1750756635576,10.93519763,144.24,144.13,2.2149]
[1750756635873,7.87734879,144.26,144.13,2.2149]
[1750756636081,13.5837103,144.25,144.13,2.2149]
[1750756636284,10.93634749,144.24,144.13,2.2149]
[1750756636477,8.54934477,144.29,144.13,2.2149]
[1750756636779,18.81619882,144.28,144.13,2.2149]
[1750756636985,18.81620473,144.27,144.13,2.2149]
[1750756637183,18.81620473,144.26,144.13,2.2149]
[1750756637383,13.58488047,144.25,144.13,2.2149]
[1750756637684,10.93717367,144.24,144.13,2.2149]
[1750756637873,7.87873894,144.26,144.13,2.2149]
[1750756638073,13.58913042,144.25,144.13,2.2149]
[1750756638367,10.94171574,144.24,144.13,2.2149]
[1750756638572,7.87834116,144.26,144.13,2.2149]
[1750756638767,5.35611943,144.25,144.14,12.91580048]
[1750756638975,2.6470169,144.27,144.14,12.91580048]
[1750756639181,10.92387313,144.26,144.14,12.91580048]
[1750756639484,7.87791271,144.28,144.14,12.91580048]
[1750756639681,13.57142961,144.27,144.14,12.91580048]
[1750756639883,10.92413261,144.26,144.14,12.91580048]
[1750756640185,7.87814654,144.28,144.14,12.91580048]
[1750756640489,13.57358192,144.27,144.14,12.91580048]
[1750756640682,10.92605109,144.26,144.14,12.91580048]
[1750756640882,7.87834784,144.28,144.14,12.91580048]
[1750756641077,13.5738983,144.27,144.14,12.91580048]
[1750756641275,10.92616617,144.26,144.14,12.91580048]
[1750756641475,7.87853937,144.28,144.14,12.91580048]
[1750756641684,13.57589072,144.27,144.14,12.91580048]
[1750756641879,10.92796706,144.26,144.14,12.91580048]
[1750756642076,7.87881054,144.28,144.14,12.91580048]
[1750756642379,13.57685125,144.27,144.14,12.91580048]
[1750756642678,10.92865642,144.26,144.14,12.91580048]
[1750756642875,7.87864976,144.28,144.14,12.91580048]
[1750756643185,18.81078085,144.27,144.14,12.91580048]
[1750756643376,18.81078085,144.26,144.13,2.2149]
[1750756643682,13.58016514,144.25,144.13,2.2149]
[1750756643983,10.93213109,144.24,144.13,2.2149]
[1750756644187,10.93213109,144.23,144.13,2.2149]
[1750756644482,2.63911862,144.25,144.13,2.2149]
[1750756644684,10.94381685,144.24,144.13,2.2149]
[1750756644886,29.34934477,144.29,144.13,2.2149]
[1750756644887,2.6390949,144.25,144.13,2.2149]
[1750756645183,10.94868693,144.24,144.13,2.2149]
[1750756645371,5.37469696,144.23,144.13,2.2149]
[1750756645575,8.21540047,144.25,144.13,15.13070048]
[1750756645780,5.37673111,144.24,144.13,15.13070048]
[1750756645983,7.86854141,144.26,144.13,15.13070048]
[1750756646180,10.95380722,144.25,144.13,15.13070048]
[1750756646381,5.37801151,144.24,144.13,15.13070048]
[1750756646584,7.86924499,144.27,144.13,15.13070048]
[1750756646779,18.82052017,144.26,144.13,2.2149]
[1750756646978,18.82052017,144.25,144.13,2.2149]
[1750756647172,18.82052017,144.24,144.13,2.2149]
[1750756647371,13.59314397,144.23,144.13,2.2149]
[1750756647583,10.95172319,144.22,144.13,2.2149]
[1750756647780,7.87331807,144.24,144.13,2.2149]
[1750756648084,13.59276376,144.23,144.13,2.2149]
[1750756648274,10.9505423,144.22,144.13,2.2149]
[1750756648470,5.37242021,144.21,144.13,2.2149]
[1750756648683,7.8733575,144.23,144.13,2.2149]
[1750756648875,13.59121141,144.22,144.13,2.2149]
[1750756649184,5.37238916,144.21,144.13,2.2149]
[1750756649376,7.87320428,144.24,144.13,2.2149]
[1750756649582,18.82216117,144.23,144.13,2.2149]
[1750756649781,13.59106174,144.22,144.13,2.2149]
[1750756650081,5.37262237,144.21,144.13,2.2149]
[1750756650385,7.87320428,144.24,144.13,2.2149]
[1750756650582,18.79505026,144.23,144.13,2.2149]
[1750756650784,10.93139983,144.22,144.13,2.2149]
[1750756650984,5.37125154,144.21,144.13,2.2149]
[1750756651282,7.86338628,144.24,144.13,2.2149]
[1750756651483,18.79517599,144.23,144.13,2.2149]
[1750756651682,13.57079178,144.22,144.13,2.2149]
[1750756651887,5.37261189,144.21,144.13,2.2149]
[1750756652184,7.86280731,144.24,144.13,2.2149]
[1750756652386,18.78881727,144.23,144.13,2.2149]
[1750756652582,13.56443306,144.22,144.13,2.2149]
[1750756652783,5.3695317,144.21,144.13,2.2149]
[1750756653089,13.4182031,144.24,144.13,2.2149]
[1750756653292,5.55561666,144.23,144.13,2.2149]
[1750756653482,13.5557158,144.22,144.13,2.2149]
[1750756653788,5.36129423,144.21,144.13,2.2149]
[1750756653999,13.41754033,144.24,144.13,2.2149]
[1750756654286,18.77923332,144.23,144.13,2.2149]
[1750756654487,13.55576012,144.22,144.13,2.2149]
[1750756654683,5.36169299,144.21,144.13,2.2149]
[1750756654883,7.86289099,144.24,144.13,2.2149]
[1750756655184,18.78256503,144.23,144.13,2.2149]
[1750756655381,13.55909183,144.22,144.13,2.2149]
[1750756655685,5.36198841,144.21,144.13,2.2149]
[1750756655884,7.86727278,144.25,144.13,2.2149]
[1750756656084,5.55947013,144.24,144.13,2.2149]
[1750756656284,18.79344395,144.23,144.13,2.2149]
[1750756656485,13.56532065,144.22,144.13,2.2149]
[1750756656685,5.36606713,144.21,144.13,2.2149]
[1750756656889,7.86751532,144.25,144.13,2.2149]
[1750756657086,18.79268822,144.24,144.13,2.2149]
[1750756657282,18.79268822,144.23,144.13,2.2149]
[1750756657485,13.56498032,144.22,144.13,2.2149]
[1750756657779,5.36565283,144.21,144.13,2.2149]
[1750756657982,7.86810041,144.25,144.13,2.2149]
[1750756658183,18.79340779,144.24,144.13,2.2149]
[1750756658384,18.79340779,144.23,144.13,2.2149]
[1750756658583,13.5652901,144.22,144.13,2.2149]
[1750756658787,5.36598479,144.21,144.12,2.2305]
[1750756658988,26.02781605,144.26,144.07,15.16530048]
[1750756658989,18.79006516,144.2,144.07,15.16530048]
[1750756659189,2.63972341,144.21,144.09,12.91580048]
[1750756659396,5.3655734,144.2,144.1,17.58200048]
[1750756659691,13.4258802,144.22,144.1,17.58200048]
[1750756659891,5.36425242,144.21,144.1,17.58200048]
[1750756660091,13.42340085,144.23,144.11,12.91580048]
[1750756660288,13.56015231,144.22,144.12,2.2495]
[1750756660489,5.3643842,144.21,144.12,2.2495]
[1750756660795,7.86543921,144.25,144.12,2.2495]
[1750756660987,18.7867642,144.24,144.12,2.2495]
[1750756661290,18.7867642,144.23,144.12,2.2495]
[1750756661591,13.56042873,144.22,144.12,2.2495]
[1750756661788,5.36423437,144.21,144.12,2.2495]
[1750756661987,14.28775506,144.25,144.12,2.2495]
[1750756662187,18.78718343,144.24,144.12,2.2495]
[1750756662390,18.78718343,144.23,144.12,2.2495]
[1750756662597,13.56083805,144.22,144.12,2.2495]
[1750756662892,5.36422014,144.21,144.12,2.2495]
[1750756663191,7.86537646,144.23,144.12,2.2495]
[1750756663394,13.56010364,144.22,144.12,2.2495]
[1750756663594,5.3641218,144.21,144.12,2.2495]
[1750756663786,7.86531196,144.23,144.12,2.2495]
[1750756664092,13.56096374,144.22,144.12,2.2495]
[1750756664277,5.36416907,144.21,144.12,2.2495]
[1750756664483,5.22863765,144.23,144.12,2.2495]
[1750756664790,13.56614267,144.22,144.12,2.2495]
[1750756664987,5.36711771,144.21,144.12,2.2495]
[1750756665195,5.22984915,144.23,144.12,2.2495]
[1750756665388,13.57411925,144.22,144.12,2.2495]
[1750756665690,5.36834415,144.21,144.12,2.2495]
[1750756665891,5.23228305,144.23,144.12,2.2495]
[1750756666089,13.58010343,144.22,144.12,2.2495]
[1750756666294,5.37074159,144.21,144.12,2.2495]
[1750756666486,5.37074159,144.2,144.12,2.2495]
[1750756666689,2.64479035,144.22,144.12,2.2495]
[1750756666896,6.42230395,144.25,144.12,2.2495]
[1750756666897,10.94422134,144.21,144.12,2.2495]
[1750756667089,5.37350399,144.2,144.12,2.2495]
[1750756667382,5.24106561,144.23,144.12,2.2495]
[1750756667590,18.84036364,144.22,144.12,2.2495]
[1750756667795,13.59929803,144.21,144.12,2.2495]
[1750756667995,5.37787557,144.2,144.12,2.2495]
[1750756668186,5.24187085,144.23,144.12,2.2495]
[1750756668386,18.83864226,144.22,144.12,2.2495]
[1750756668593,13.59677141,144.21,144.12,2.2495]
[1750756668894,5.37718056,144.2,144.12,2.2495]
[1750756669096,5.24235885,144.23,144.12,2.2495]
[1750756669289,18.84875042,144.22,144.12,2.2495]
[1750756669490,13.60639157,144.21,144.12,2.2495]
[1750756669692,5.38472367,144.2,144.12,2.2495]
[1750756669893,5.24249389,144.23,144.12,2.2495]
[1750756670098,18.84757766,144.22,144.12,2.2495]
[1750756670289,10.96030831,144.21,144.12,15.16530048]
[1750756670496,8.54934477,144.28,144.13,12.91580048]
[1750756670698,18.84545166,144.27,144.13,12.91580048]
[1750756670892,18.84545166,144.26,144.13,12.91580048]
[1750756671194,13.60389378,144.25,144.13,12.91580048]
[1750756671400,18.84598372,144.24,144.13,12.91580048]
[1750756671699,8.54934477,144.28,144.13,12.91580048]
[1750756671700,13.60389378,144.23,144.13,12.91580048]
[1750756671902,5.38586967,144.22,144.14,12.91580048]
[1750756672198,5.24210375,144.26,144.14,12.91580048]
[1750756672402,18.84705105,144.25,144.12,15.16530048]
[1750756672700,18.84705105,144.24,144.12,15.16530048]
[1750756672997,18.84666359,144.23,144.12,15.16530048]
[1750756673204,13.60455984,144.22,144.12,15.16530048]
[1750756673400,8.03309816,144.21,144.12,15.16530048]
[1750756673598,5.38630516,144.2,144.12,15.16530048]
[1750756673796,5.24149181,144.25,144.12,15.16530048]
[1750756673998,18.85371214,144.24,144.12,15.16530048]
[1750756674198,18.85371214,144.23,144.12,15.16530048]
[1750756674404,18.85371214,144.22,144.12,15.16530048]
[1750756674702,18.84947284,144.21,144.11,12.91580048]
[1750756674894,10.96526435,144.2,144.11,12.91580048]
[1750756675094,5.39354561,144.19,144.11,12.91580048]
[1750756675403,5.23746474,144.22,144.11,12.91580048]
[1750756675595,18.85895347,144.21,144.1,17.58200048]
[1750756675806,13.62133772,144.2,144.1,17.58200048]
[1750756675998,5.24073064,144.22,144.1,17.58200048]
[1750756676202,13.62165041,144.21,144.11,12.91580048]
[1750756676502,5.39275305,144.2,144.11,12.91580048]
[1750756676800,5.24065388,144.23,144.11,12.91580048]
[1750756676995,18.86185807,144.22,144.11,12.91580048]
[1750756677197,13.62120419,144.21,144.11,12.91580048]
[1750756677399,5.39230385,144.2,144.11,12.91580048]
[1750756677597,5.24081642,144.23,144.11,12.91580048]
[1750756677798,18.86249829,144.22,144.11,12.91580048]
[1750756677999,13.62168187,144.21,144.11,12.91580048]
[1750756678304,5.39250645,144.2,144.11,12.91580048]
[1750756678501,6.44168724,144.24,144.11,12.91580048]
[1750756678698,18.85511965,144.23,144.11,12.91580048]
[1750756678903,18.85511965,144.22,144.11,12.91580048]
[1750756679104,13.6148478,144.21,144.11,12.91580048]
[1750756679304,5.38590789,144.2,144.11,12.91580048]
[1750756679499,5.24100884,144.23,144.11,12.91580048]
[1750756679701,18.85021959,144.22,144.11,12.91580048]
[1750756680006,6.44168724,144.24,144.11,12.91580048]
[1750756680007,13.60921075,144.21,144.11,12.91580048]
[1750756680308,5.38562989,144.2,144.11,12.91580048]
[1750756680503,5.23854296,144.23,144.11,12.91580048]
[1750756680809,18.84733441,144.22,144.11,12.91580048]
[1750756681013,13.60879145,144.21,144.11,12.91580048]
[1750756681306,5.38596437,144.2,144.11,12.91580048]
[1750756681509,5.23896203,144.23,144.11,12.91580048]
[1750756681713,18.84952694,144.22,144.11,12.91580048]
[1750756681907,13.61056491,144.21,144.11,12.91580048]
[1750756682209,5.38787496,144.2,144.11,12.91580048]
[1750756682400,5.24034758,144.23,144.11,12.91580048]
[1750756682599,18.85426772,144.22,144.11,12.91580048]
[1750756682803,13.61392014,144.21,144.11,12.91580048]
[1750756682994,5.3879651,144.2,144.11,12.91580048]
[1750756683195,5.24322762,144.23,144.11,12.91580048]
[1750756683401,18.86658659,144.22,144.11,12.91580048]
[1750756683610,18.86730255,144.21,144.11,12.91580048]
[1750756683911,13.62335897,144.2,144.11,12.91580048]
[1750756684100,5.24450479,144.22,144.11,12.91580048]
[1750756684300,13.62083083,144.21,144.11,12.91580048]
[1750756684501,10.97085487,144.2,144.11,12.91580048]
[1750756684706,5.39324144,144.19,144.11,12.91580048]
[1750756684907,5.24430595,144.22,144.11,12.91580048]
[1750756685208,18.87075485,144.21,144.11,12.91580048]
[1750756685405,10.97329706,144.2,144.11,12.91580048]
[1750756685601,5.39324717,144.19,144.11,12.91580048]
[1750756685801,5.24608753,144.22,144.11,12.91580048]
[1750756686012,18.87266921,144.21,144.11,12.91580048]
[1750756686211,10.97511179,144.2,144.11,12.91580048]
[1750756686513,5.39345941,144.19,144.12,12.91580048]
[1750756686810,5.24831389,144.22,144.12,12.91580048]
[1750756687007,18.87999923,144.21,144.12,12.91580048]
[1750756687207,13.63168534,144.2,144.12,12.91580048]
[1750756687410,5.39574875,144.19,144.12,12.91580048]
[1750756687713,5.24850329,144.22,144.12,12.91580048]
[1750756687907,18.88293711,144.21,144.12,12.91580048]
[1750756688106,13.63443382,144.2,144.12,12.91580048]
[1750756688306,5.39594188,144.19,144.12,12.91580048]
[1750756688603,6.44168724,144.23,144.12,12.91580048]
[1750756688814,18.89511277,144.22,144.12,12.91580048]
[1750756689008,18.89511277,144.21,144.12,12.91580048]
[1750756689209,13.64248976,144.2,144.12,12.91580048]
[1750756689407,5.40017519,144.19,144.12,12.91580048]
[1750756689712,5.40017519,144.18,144.12,12.91580048]
[1750756689904,5.26863198,144.22,144.12,12.91580048]
[1750756690103,18.93166157,144.21,144.12,12.91580048]
[1750756690305,8.07953592,144.2,144.12,12.91580048]
[1750756690505,8.08076931,144.19,144.12,12.91580048]
[1750756690711,5.41655593,144.18,144.12,12.91580048]
[1750756691314,6.46095308,144.23,144.12,12.91580048]
[1750756691514,5.58815585,144.22,144.12,12.91580048]
[1750756691814,6.46095308,144.19,144.08,12.91580048]
[1750756692015,12.04910893,144.18,144.08,12.91580048]
[1750756692217,5.58815585,144.17,144.08,12.91580048]
[1750756692514,5.58815585,144.16,144.07,12.91580048]
[1750756692710,5.58815585,144.16,144.06,4.3803]
[1750756692711,5.58815585,144.15,144.06,4.3803]